Workbook

Sheet Sheet1
A1: Prio Number | B1: Cow Number | C1: Year | D1: Month | E1: impmil | F1: imppol | G1: Description
A2: 1 | B2: 737 | C2: 1946 | D2: 6 | E2: 1 | F2: 0
A3: 1 | B3: 737 | C3: 1946 | D3: 7 | E3: 2 | F3: 0 | G3: violence in La Paz; president lynched
A4: 1 | B4: 737 | C4: 1952 | D4: 4 | E4: 0 | F4: 0
A5: 1 | B5: 737 | C5: 1967 | D5: 3 | E5: 0 | F5: 0
A6: 1 | B6: 737 | C6: 1967 | D6: 4 | E6: 0 | F6: 0
A7: 1 | B7: 737 | C7: 1967 | D7: 5 | E7: 0 | F7: 0
A8: 1 | B8: 737 | C8: 1967 | D8: 6 | E8: 0 | F8: 1 | G8: widespread demonstrations
A9: 1 | B9: 737 | C9: 1967 | D9: 7 | E9: 0 | F9: 0
A10: 1 | B10: 737 | C10: 1967 | D10: 8 | E10: 0 | F10: 0
A11: 1 | B11: 737 | C11: 1967 | D11: 9 | E11: 0 | F11: 0
A12: 1 | B12: 737 | C12: 1967 | D12: 10 | E12: 0 | F12: 0
A13: 3 | B13: 725 | C13: 1946 | D13: 1 | E13: 0 | F13: 0
A14: 3 | B14: 725 | C14: 1946 | D14: 2 | E14: 0 | F14: 0
A15: 3 | B15: 725 | C15: 1946 | D15: 3 | E15: 0 | F15: 0
A16: 3 | B16: 725 | C16: 1946 | D16: 4 | E16: 0 | F16: 0
A17: 3 | B17: 725 | C17: 1946 | D17: 5 | E17: 0 | F17: 1
A18: 3 | B18: 725 | C18: 1946 | D18: 6 | E18: 0 | F18: 0
A19: 3 | B19: 725 | C19: 1946 | D19: 7 | E19: 0 | F19: 1
A20: 3 | B20: 725 | C20: 1946 | D20: 8 | E20: 1 | F20: 0
A21: 3 | B21: 725 | C21: 1946 | D21: 9 | E21: 0 | F21: 0
A22: 3 | B22: 725 | C22: 1946 | D22: 10 | E22: 0 | F22: 1
A23: 3 | B23: 725 | C23: 1946 | D23: 11 | E23: 0 | F23: 0
A24: 3 | B24: 725 | C24: 1946 | D24: 12 | E24: 0 | F24: 1
A25: 3 | B25: 725 | C25: 1947 | D25: 1 | E25: 0 | F25: 1
A26: 3 | B26: 725 | C26: 1947 | D26: 2 | E26: 0 | F26: 0
A27: 3 | B27: 725 | C27: 1947 | D27: 3 | E27: 0 | F27: 0
A28: 3 | B28: 725 | C28: 1947 | D28: 4 | E28: 0 | F28: 0
A29: 3 | B29: 725 | C29: 1947 | D29: 5 | E29: 0 | F29: 0
A30: 3 | B30: 725 | C30: 1947 | D30: 6 | E30: 0 | F30: 1
A31: 3 | B31: 725 | C31: 1947 | D31: 7 | E31: 0 | F31: 0
A32: 3 | B32: 725 | C32: 1947 | D32: 8 | E32: 0 | F32: 0
A33: 3 | B33: 725 | C33: 1947 | D33: 9 | E33: 0 | F33: 0
A34: 3 | B34: 725 | C34: 1947 | D34: 10 | E34: 0 | F34: 0
A35: 3 | B35: 725 | C35: 1947 | D35: 11 | E35: 0 | F35: 1
A36: 3 | B36: 725 | C36: 1947 | D36: 12 | E36: 0 | F36: 0
A37: 3 | B37: 725 | C37: 1948 | D37: 1 | E37: 0 | F37: 0
A38: 3 | B38: 725 | C38: 1948 | D38: 2 | E38: 0 | F38: 0
A39: 3 | B39: 725 | C39: 1948 | D39: 3 | E39: 0 | F39: 0
A40: 3 | B40: 725 | C40: 1948 | D40: 4 | E40: 0 | F40: 0
A41: 3 | B41: 725 | C41: 1948 | D41: 5 | E41: 0 | F41: 0
A42: 3 | B42: 725 | C42: 1948 | D42: 6 | E42: 1 | F42: 0
A43: 3 | B43: 725 | C43: 1948 | D43: 7 | E43: 0 | F43: 0
A44: 3 | B44: 725 | C44: 1948 | D44: 8 | E44: 0 | F44: 0
A45: 3 | B45: 725 | C45: 1948 | D45: 9 | E45: 1 | F45: 0
A46: 3 | B46: 725 | C46: 1948 | D46: 10 | E46: 0 | F46: 0
A47: 3 | B47: 725 | C47: 1948 | D47: 11 | E47: 0 | F47: 0
A48: 3 | B48: 725 | C48: 1948 | D48: 12 | E48: 0 | F48: 0
A49: 3 | B49: 725 | C49: 1949 | D49: 1 | E49: 1 | F49: 0
A50: 3 | B50: 725 | C50: 1949 | D50: 2 | E50: 0 | F50: 0
A51: 3 | B51: 725 | C51: 1949 | D51: 3 | E51: 0 | F51: 0
A52: 3 | B52: 725 | C52: 1949 | D52: 4 | E52: 0 | F52: 0
A53: 3 | B53: 725 | C53: 1949 | D53: 5 | E53: 0 | F53: 0
A54: 3 | B54: 725 | C54: 1949 | D54: 6 | E54: 0 | F54: 0
A55: 3 | B55: 725 | C55: 1949 | D55: 7 | E55: 0 | F55: 2
A56: 3 | B56: 725 | C56: 1949 | D56: 8 | E56: 0 | F56: 0
A57: 3 | B57: 725 | C57: 1949 | D57: 9 | E57: 0 | F57: 0
A58: 3 | B58: 725 | C58: 1949 | D58: 10 | E58: 0 | F58: 0
A59: 4 | B59: 720 | C59: 1946 | D59: 3 | E59: 0 | F59: 0
A60: 4 | B60: 720 | C60: 1946 | D60: 4 | E60: 0 | F60: 0
A61: 4 | B61: 720 | C61: 1946 | D61: 5 | E61: 0 | F61: 1
A62: 4 | B62: 720 | C62: 1946 | D62: 6 | E62: 0 | F62: 0
A63: 4 | B63: 720 | C63: 1946 | D63: 7 | E63: 0 | F63: 0
A64: 4 | B64: 720 | C64: 1946 | D64: 8 | E64: 0 | F64: 0
A65: 4 | B65: 720 | C65: 1946 | D65: 9 | E65: 0 | F65: 1
A66: 4 | B66: 720 | C66: 1946 | D66: 10 | E66: 0 | F66: 0
A67: 4 | B67: 720 | C67: 1946 | D67: 11 | E67: 0 | F67: 0
A68: 4 | B68: 720 | C68: 1946 | D68: 12 | E68: 0 | F68: 0
A69: 4 | B69: 720 | C69: 1947 | D69: 1 | E69: 0 | F69: 1
A70: 4 | B70: 720 | C70: 1947 | D70: 2 | E70: 0 | F70: 0
A71: 4 | B71: 720 | C71: 1947 | D71: 3 | E71: 0 | F71: 1
A72: 4 | B72: 720 | C72: 1947 | D72: 4 | E72: 0 | F72: 0
A73: 4 | B73: 720 | C73: 1947 | D73: 5 | E73: 0 | F73: 0
A74: 4 | B74: 720 | C74: 1947 | D74: 6 | E74: 0 | F74: 0
A75: 4 | B75: 720 | C75: 1947 | D75: 7 | E75: 0 | F75: 0
A76: 4 | B76: 720 | C76: 1947 | D76: 8 | E76: 0 | F76: 0
A77: 4 | B77: 720 | C77: 1947 | D77: 9 | E77: 0 | F77: 0
A78: 4 | B78: 720 | C78: 1947 | D78: 10 | E78: 0 | F78: 0
A79: 4 | B79: 720 | C79: 1947 | D79: 11 | E79: 0 | F79: 0
A80: 4 | B80: 720 | C80: 1947 | D80: 12 | E80: 0 | F80: 0
A81: 4 | B81: 720 | C81: 1948 | D81: 1 | E81: 0 | F81: 0
A82: 4 | B82: 720 | C82: 1948 | D82: 2 | E82: 0 | F82: 0
A83: 4 | B83: 720 | C83: 1948 | D83: 3 | E83: 0 | F83: 1
A84: 4 | B84: 720 | C84: 1948 | D84: 4 | E84: 0 | F84: 0
A85: 4 | B85: 720 | C85: 1948 | D85: 5 | E85: 0 | F85: 0
A86: 4 | B86: 720 | C86: 1948 | D86: 6 | E86: 0 | F86: 0
A87: 4 | B87: 720 | C87: 1948 | D87: 7 | E87: 0 | F87: 0
A88: 4 | B88: 720 | C88: 1948 | D88: 8 | E88: 0 | F88: 0
A89: 4 | B89: 720 | C89: 1948 | D89: 9 | E89: 0 | F89: 0
A90: 4 | B90: 720 | C90: 1948 | D90: 10 | E90: 0 | F90: 1
A91: 4 | B91: 720 | C91: 1948 | D91: 11 | E91: 0 | F91: 0
A92: 4 | B92: 720 | C92: 1948 | D92: 12 | E92: 0 | F92: 0
A93: 4 | B93: 720 | C93: 1949 | D93: 1 | E93: 0 | F93: 0
A94: 4 | B94: 720 | C94: 1949 | D94: 2 | E94: 0 | F94: 0
A95: 4 | B95: 720 | C95: 1949 | D95: 3 | E95: 0 | F95: 0
A96: 4 | B96: 720 | C96: 1949 | D96: 4 | E96: 1 | F96: 0
A97: 4 | B97: 720 | C97: 1949 | D97: 5 | E97: 0 | F97: 0
A98: 4 | B98: 720 | C98: 1949 | D98: 6 | E98: 0 | F98: 0
A99: 4 | B99: 720 | C99: 1949 | D99: 7 | E99: 1 | F99: 0
A100: 4 | B100: 720 | C100: 1949 | D100: 8 | E100: 1 | F100: 0
A101: 4 | B101: 720 | C101: 1949 | D101: 9 | E101: 0 | F101: 0
A102: 4 | B102: 720 | C102: 1949 | D102: 10 | E102: 0 | F102: 0
A103: 6 | B103: 816 | C103: 1946 | D103: 5 | E103: 0 | F103: 0
A104: 6 | B104: 816 | C104: 1946 | D104: 6 | E104: 0 | F104: 0
A105: 6 | B105: 816 | C105: 1946 | D105: 7 | E105: 0 | F105: 1 | G105: violent strikes
A106: 6 | B106: 816 | C106: 1946 | D106: 8 | E106: 0 | F106: 0
A107: 6 | B107: 816 | C107: 1946 | D107: 9 | E107: 0 | F107: 0
A108: 6 | B108: 816 | C108: 1946 | D108: 10 | E108: 0 | F108: 0
A109: 6 | B109: 816 | C109: 1946 | D109: 11 | E109: 0 | F109: 0
A110: 6 | B110: 816 | C110: 1946 | D110: 12 | E110: 0 | F110: 0
A111: 6 | B111: 816 | C111: 1966 | D111: 1 | E111: 0 | F111: 0
A112: 6 | B112: 816 | C112: 1966 | D112: 2 | E112: 0 | F112: 0
A113: 6 | B113: 816 | C113: 1966 | D113: 3 | E113: 0 | F113: 0
A114: 6 | B114: 816 | C114: 1966 | D114: 4 | E114: 0 | F114: 0
A115: 6 | B115: 816 | C115: 1966 | D115: 5 | E115: 0 | F115: 0
A116: 6 | B116: 816 | C116: 1966 | D116: 6 | E116: 0 | F116: 0
A117: 6 | B117: 816 | C117: 1966 | D117: 7 | E117: 0 | F117: 0
A118: 6 | B118: 816 | C118: 1966 | D118: 8 | E118: 0 | F118: 0
A119: 6 | B119: 816 | C119: 1966 | D119: 9 | E119: 0 | F119: 0
A120: 6 | B120: 816 | C120: 1966 | D120: 10 | E120: 0 | F120: 0
A121: 6 | B121: 816 | C121: 1966 | D121: 11 | E121: 0 | F121: 0
A122: 6 | B122: 816 | C122: 1966 | D122: 12 | E122: 0 | F122: 0
A123: 6 | B123: 816 | C123: 1967 | D123: 1 | E123: 0 | F123: 0
A124: 6 | B124: 816 | C124: 1967 | D124: 2 | E124: 0 | F124: 0
A125: 6 | B125: 816 | C125: 1967 | D125: 3 | E125: 0 | F125: 0
A126: 6 | B126: 816 | C126: 1967 | D126: 4 | E126: 0 | F126: 0
A127: 6 | B127: 816 | C127: 1967 | D127: 5 | E127: 0 | F127: 0
A128: 6 | B128: 816 | C128: 1967 | D128: 6 | E128: 0 | F128: 0
A129: 6 | B129: 816 | C129: 1967 | D129: 7 | E129: 0 | F129: 0
A130: 6 | B130: 816 | C130: 1967 | D130: 8 | E130: 0 | F130: 0
A131: 6 | B131: 816 | C131: 1967 | D131: 9 | E131: 0 | F131: 0
A132: 6 | B132: 816 | C132: 1967 | D132: 10 | E132: 0 | F132: 0
A133: 6 | B133: 816 | C133: 1967 | D133: 11 | E133: 0 | F133: 0
A134: 6 | B134: 816 | C134: 1967 | D134: 12 | E134: 0 | F134: 0
A135: 6 | B135: 816 | C135: 1968 | D135: 1 | E135: 0 | F135: 0
A136: 6 | B136: 816 | C136: 1968 | D136: 2 | E136: 0 | F136: 0
A137: 6 | B137: 816 | C137: 1968 | D137: 3 | E137: 0 | F137: 0
A138: 6 | B138: 816 | C138: 1968 | D138: 4 | E138: 0 | F138: 0
A139: 6 | B139: 816 | C139: 1968 | D139: 5 | E139: 0 | F139: 0
A140: 6 | B140: 816 | C140: 1968 | D140: 6 | E140: 0 | F140: 0
A141: 6 | B141: 816 | C141: 1968 | D141: 7 | E141: 0 | F141: 0
A142: 6 | B142: 816 | C142: 1968 | D142: 8 | E142: 0 | F142: 0
A143: 6 | B143: 816 | C143: 1968 | D143: 9 | E143: 0 | F143: 0
A144: 6 | B144: 816 | C144: 1968 | D144: 10 | E144: 0 | F144: 0
A145: 6 | B145: 816 | C145: 1968 | D145: 11 | E145: 0 | F145: 0
A146: 6 | B146: 816 | C146: 1968 | D146: 12 | E146: 0 | F146: 0
A147: 6 | B147: 816 | C147: 1979 | D147: 1 | E147: 0 | F147: 2 | G147: Government resigns; Shah goes into exile
A148: 6 | B148: 816 | C148: 1979 | D148: 2 | E148: 0 | F148: 0
A149: 6 | B149: 816 | C149: 1979 | D149: 3 | E149: 0 | F149: 0
A150: 6 | B150: 816 | C150: 1979 | D150: 4 | E150: 1 | F150: 0
A151: 6 | B151: 816 | C151: 1979 | D151: 5 | E151: 0 | F151: 1
A152: 6 | B152: 816 | C152: 1979 | D152: 6 | E152: 0 | F152: 0
A153: 6 | B153: 816 | C153: 1979 | D153: 7 | E153: 0 | F153: 1
A154: 6 | B154: 816 | C154: 1979 | D154: 8 | E154: 0 | F154: 0
A155: 6 | B155: 816 | C155: 1979 | D155: 9 | E155: 0 | F155: 0
A156: 6 | B156: 816 | C156: 1979 | D156: 10 | E156: 0 | F156: 0
A157: 6 | B157: 816 | C157: 1979 | D157: 11 | E157: 0 | F157: 2
A158: 6 | B158: 816 | C158: 1979 | D158: 12 | E158: 1 | F158: 0
A159: 6 | B159: 816 | C159: 1980 | D159: 1 | E159: 0 | F159: 0
A160: 6 | B160: 816 | C160: 1980 | D160: 2 | E160: 0 | F160: 0
A161: 6 | B161: 816 | C161: 1980 | D161: 3 | E161: 0 | F161: 0
A162: 6 | B162: 816 | C162: 1980 | D162: 4 | E162: 0 | F162: 0
A163: 6 | B163: 816 | C163: 1980 | D163: 5 | E163: 0 | F163: 0
A164: 6 | B164: 816 | C164: 1980 | D164: 6 | E164: 0 | F164: 0
A165: 6 | B165: 816 | C165: 1980 | D165: 7 | E165: 0 | F165: 1
A166: 6 | B166: 816 | C166: 1980 | D166: 8 | E166: 0 | F166: 0
A167: 6 | B167: 816 | C167: 1980 | D167: 9 | E167: 0 | F167: 0
A168: 6 | B168: 816 | C168: 1980 | D168: 10 | E168: 0 | F168: 0
A169: 6 | B169: 816 | C169: 1980 | D169: 11 | E169: 0 | F169: 0
A170: 6 | B170: 816 | C170: 1980 | D170: 12 | E170: 0 | F170: 0
A171: 6 | B171: 816 | C171: 1981 | D171: 1 | E171: 0 | F171: 0
A172: 6 | B172: 816 | C172: 1981 | D172: 2 | E172: 0 | F172: 0
A173: 6 | B173: 816 | C173: 1981 | D173: 3 | E173: 0 | F173: 0
A174: 6 | B174: 816 | C174: 1981 | D174: 4 | E174: 0 | F174: 0
A175: 6 | B175: 816 | C175: 1981 | D175: 5 | E175: 0 | F175: 0
A176: 6 | B176: 816 | C176: 1981 | D176: 6 | E176: 2 | F176: 0
A177: 6 | B177: 816 | C177: 1981 | D177: 7 | E177: 0 | F177: 1
A178: 6 | B178: 816 | C178: 1981 | D178: 8 | E178: 1 | F178: 0
A179: 6 | B179: 816 | C179: 1981 | D179: 9 | E179: 0 | F179: 0
A180: 6 | B180: 816 | C180: 1981 | D180: 10 | E180: 0 | F180: 0
A181: 6 | B181: 816 | C181: 1981 | D181: 11 | E181: 0 | F181: 0
A182: 6 | B182: 816 | C182: 1981 | D182: 12 | E182: 0 | F182: 0
A183: 6 | B183: 816 | C183: 1982 | D183: 1 | E183: 0 | F183: 0
A184: 6 | B184: 816 | C184: 1982 | D184: 2 | E184: 0 | F184: 0
A185: 6 | B185: 816 | C185: 1982 | D185: 3 | E185: 0 | F185: 0
A186: 6 | B186: 816 | C186: 1982 | D186: 4 | E186: 0 | F186: 0
A187: 6 | B187: 816 | C187: 1982 | D187: 5 | E187: 0 | F187: 0
A188: 6 | B188: 816 | C188: 1982 | D188: 6 | E188: 0 | F188: 0
A189: 6 | B189: 816 | C189: 1982 | D189: 7 | E189: 0 | F189: 0
A190: 6 | B190: 816 | C190: 1982 | D190: 8 | E190: 0 | F190: 0
A191: 6 | B191: 816 | C191: 1982 | D191: 9 | E191: 0 | F191: 0
A192: 6 | B192: 816 | C192: 1982 | D192: 10 | E192: 0 | F192: 0
A193: 6 | B193: 816 | C193: 1982 | D193: 11 | E193: 0 | F193: 0
A194: 6 | B194: 816 | C194: 1982 | D194: 12 | E194: 0 | F194: 1
A195: 6 | B195: 816 | C195: 1983 | D195: 1 | E195: 0 | F195: 0
A196: 6 | B196: 816 | C196: 1983 | D196: 2 | E196: 0 | F196: 0
A197: 6 | B197: 816 | C197: 1983 | D197: 3 | E197: 0 | F197: 0
A198: 6 | B198: 816 | C198: 1983 | D198: 4 | E198: 0 | F198: 0
A199: 6 | B199: 816 | C199: 1983 | D199: 5 | E199: 0 | F199: 0
A200: 6 | B200: 816 | C200: 1983 | D200: 6 | E200: 0 | F200: 0
... 4300 more rows

Sheet Sheet2

Sheet Sheet3
